fUST/lending_fUST_20240701
["ID","MTS","AMOUNT","RATE_DAILY","PERIOD"]
[330799872,1719801470368,-875.25,0.00015528,2]
[330799873,1719801470390,-500.0,0.00015528,2]
[330799874,1719801470413,-1316.24,0.00015528,2]
[330799875,1719801470434,-500.0,0.00015528,2]
[330799876,1719801470458,-500.0,0.00015528,2]
[330799877,1719801470491,-1024.52,0.00015528,2]
[330799878,1719801470516,-1454.03,0.00015528,2]
[330799879,1719801470542,-1089.38,0.00015528,2]
[330799880,1719801470567,-1996.29,0.00015528,2]
[330799881,1719801470590,-500.0,0.00015528,2]
[330799882,1719801470616,-622.57,0.00015528,2]
[330799883,1719801470643,-500.0,0.00015528,2]
[330799884,1719801470668,-1742.71,0.00015528,2]
[330799885,1719801470692,-500.0,0.00015528,2]
[330799886,1719801470716,-1879.45,0.00015528,2]
[330799887,1719801470740,-500.0,0.00015528,2]
[330799888,1719801470766,-938.1,0.00015528,2]
[330799889,1719801470792,-500.0,0.00015528,2]
[330799890,1719801470814,-500.0,0.00015528,2]
[330799891,1719801470840,-500.0,0.00015528,2]
[330799892,1719801470865,-500.0,0.00015528,2]
[330799893,1719801470890,-900.4,0.00015528,2]
[330799894,1719801470915,-3100.95,0.00015528,2]
[330799895,1719801470944,-500.0,0.00015528,2]
[330799896,1719801470967,-1050.04,0.00015528,2]
[330799897,1719801470992,-500.0,0.00015528,2]
[330799898,1719801471015,-500.0,0.00015528,2]
[330799899,1719801471040,-500.0,0.00015528,2]
[330799900,1719801471064,-500.0,0.00015528,2]
[330799901,1719801471087,-821.51,0.00015528,2]
[330799902,1719801471110,-910.05,0.00015528,2]
[330799903,1719801471134,-500.0,0.00015528,2]
[330799904,1719801471161,-527.98,0.00015528,2]
[330799905,1719801471184,-500.0,0.00015528,2]
[330799906,1719801471208,-260.71858056,0.00015528,2]
[330799907,1719801471232,-8254.35,0.00015528,2]
[330799908,1719801471255,-1082.66,0.00015528,2]
[330799909,1719801471278,-500.0,0.00015529,2]
[330799910,1719801471301,-802.51,0.00015529,2]
[330799911,1719801471328,-633.68,0.00015529,2]
[330799912,1719801471351,-1038.74,0.00015529,2]
[330799913,1719801471375,-587.09,0.00015529,2]
[330799914,1719801471399,-500.0,0.00015529,2]
[330799915,1719801471596,-500.0,0.00015529,2]
[330799916,1719801471619,-1084.97,0.00015529,2]
[330799917,1719801471644,-500.0,0.00015529,2]
[330799918,1719801471668,-561.31,0.00015529,2]
[330799919,1719801471690,-500.0,0.00015529,2]
[330799920,1719801471713,-500.0,0.00015529,2]
[330799921,1719801471739,-500.0,0.00015529,2]
[330799922,1719801471762,-500.0,0.00015529,2]
[330799923,1719801471788,-500.0,0.00015529,2]
[330799924,1719801471812,-151.0,0.00015529,2]
[330799925,1719801471837,-500.0,0.00015529,2]
[330799926,1719801471859,-500.0,0.00015529,2]
[330799927,1719801471886,-151.0,0.00015529,2]
[330799928,1719801471910,-500.0,0.00015529,2]
[330799929,1719801471933,-151.0,0.00015529,2]
[330799930,1719801471956,-151.0,0.00015529,2]
[330799931,1719801471978,-790.21,0.00015529,2]
[330799932,1719801472000,-153.894747,0.00015529,2]
[330799933,1719801472023,-500.0,0.00015529,2]
[330799934,1719801472045,-1220.41,0.00015529,2]
[330799935,1719801472070,-395.994521,0.00015529,2]
[330799936,1719801472093,-395.994521,0.00015529,2]
[330799937,1719801472117,-3827.27282061,0.00015529,2]
[330799948,1719801740768,293.1110479,0.00014999,2]
[330799949,1719801755625,3999.39554586,0.00014999,2]
[330799950,1719801766642,3999.39554586,0.00014999,2]
[330799952,1719801812021,641.7336744,0.00014999,2]
[330799957,1719801974630,1157.60282189,0.00014999,2]
[330799958,1719801985626,1157.60282189,0.00014999,2]
[330799959,1719801995132,190.56954428,0.00014999,2]
[330799960,1719802050221,156.08831185,0.00014999,2]
[330799961,1719802139144,1157.60282189,0.00014999,2]
[330800125,1719802300156,1157.60282189,0.00014999,2]
[330800128,1719802456652,1157.60282189,0.00014999,2]
[330800129,1719802591651,1157.60282189,0.00014999,2]
[330800131,1719802694931,1085.00294421,0.00014999,4]
[330800132,1719802742148,1157.60282189,0.00014999,2]
[330800133,1719802895666,1157.60282189,0.00014999,2]
[330800134,1719802896136,2200.7,0.00025,120]
[330800137,1719803056676,1157.60282189,0.00014999,2]
[330800138,1719803067675,1157.60282189,0.00014999,2]
[330800682,1719803504985,399.04204438,0.00025,120]
[330800688,1719804011650,621.44480557,0.00014439,2]
[330800694,1719804244843,285.0,0.00025,120]
[330800860,1719804638754,-620.07224028,0.00015161,2]
[330800861,1719804638765,-75.4085807,0.00015413,2]
[330800878,1719804641894,1157.60282189,0.00014999,2]
[330800905,1719804644567,-158.2800541,0.00015413,2]
[330800906,1719804644577,-164.22580688,0.00015414,2]
[330800950,1719804715328,155.47890544,0.00014999,2]
[330800952,1719804793835,367.32201117,0.00014999,2]
[330800953,1719804921485,155.47890544,0.00014999,2]
[330800958,1719805061978,221.64635681,0.00014999,2]
[330800965,1719805215583,808.92881548,0.00014999,4]
[330800966,1719805242772,586.76220242,0.00014999,2]
[330800985,1719805612709,156.24349854,0.00014999,2]
[330800986,1719805640452,156.59085565,0.00014999,2]
[330800996,1719805831714,60000.0,0.00015,2]
[330801041,1719805832358,-274.50639194,0.00015421,2]
[330801043,1719805832367,-150.372,0.00015451,2]
[330801045,1719805832381,-150.0,0.00015454,2]
[330801047,1719805832512,-105.51205298,0.00015454,2]
[330801048,1719805832564,-434.4293937,0.00015454,2]
[330801049,1719805832577,-337.05855332,0.00015454,2]
[330801050,1719805832587,-300.0,0.00015517,2]
[330801051,1719805832598,-271.911676,0.00015518,2]
[330801052,1719805832607,-151.0,0.00015518,2]
[330801053,1719805832617,-151.0,0.00015518,2]
[330801054,1719805832628,-151.0,0.00015518,2]
[330801055,1719805832637,-151.0,0.00015518,2]
[330801056,1719805832647,-151.0,0.00015518,2]
[330801057,1719805832658,-201.005557,0.00015518,2]
[330801058,1719805832668,-151.0,0.00015518,2]
[330801059,1719805832678,-151.0,0.00015518,2]
[330801060,1719805832688,-151.0,0.00015518,2]
[330801061,1719805832698,-151.0,0.00015518,2]
[330801062,1719805832707,-151.0,0.00015518,2]
[330801063,1719805832717,-151.0,0.00015518,2]
[330801064,1719805832728,-395.994521,0.00015519,2]
[330801065,1719805832737,-395.994521,0.00015519,2]
[330801066,1719805832746,-395.994521,0.00015519,2]
[330801067,1719805832757,-205.33562579,0.00015519,2]
[330801113,1719805843550,-233.68863479,0.00015519,2]
[330801114,1719805843561,-395.994521,0.00015519,2]
[330801115,1719805843570,-220.491563,0.00015519,2]
[330801116,1719805843604,-175.502958,0.00015519,2]
[330801117,1719805843616,-395.994521,0.00015519,2]
[330801118,1719805843626,-395.994521,0.00015519,2]
[330801119,1719805843634,-395.994521,0.00015519,2]
[330801120,1719805843645,-395.994521,0.00015519,2]
[330801121,1719805843654,-395.994521,0.00015519,2]
[330801122,1719805843666,-395.994521,0.00015519,2]
[330801123,1719805843675,-395.994521,0.00015519,2]
[330801124,1719805843684,-395.994521,0.00015519,2]
[330801125,1719805843694,-395.994521,0.00015519,2]
[330801126,1719805843703,-395.994521,0.00015519,2]
[330801127,1719805843714,-395.994521,0.00015519,2]
[330801128,1719805843724,-395.994521,0.00015519,2]
[330801129,1719805843734,-395.994521,0.00015519,2]
[330801130,1719805843743,-395.994525,0.00015519,2]
[330801131,1719805843754,-446.885424,0.00015519,2]
[330801132,1719805843765,-446.885424,0.00015519,2]
[330801133,1719805843776,-40.52159593,0.00015519,2]
[330801144,1719805846506,-406.36382807,0.00015519,2]
[330801145,1719805846515,-446.885424,0.00015519,2]
[330801146,1719805846524,-446.885424,0.00015519,2]
[330801147,1719805846533,-446.885424,0.00015519,2]
[330801148,1719805846543,-446.885424,0.00015519,2]
[330801149,1719805846552,-446.885424,0.00015519,2]
[330801150,1719805846561,-446.885424,0.00015519,2]
[330801151,1719805846571,-446.885424,0.00015519,2]
[330801152,1719805846580,-446.885424,0.00015519,2]
[330801153,1719805846589,-446.885424,0.00015519,2]
[330801154,1719805846598,-446.885424,0.00015519,2]
[330801155,1719805846607,-446.885424,0.00015519,2]
[330801156,1719805846616,-446.885424,0.00015519,2]
[330801157,1719805846625,-446.885424,0.00015519,2]
[330801158,1719805846635,-446.885424,0.00015519,2]
[330801159,1719805846643,-446.885424,0.00015519,2]
[330801160,1719805846653,-446.885424,0.00015519,2]
[330801161,1719805846662,-446.885418,0.00015519,2]
[330801162,1719805846671,-151.0,0.00015519,2]
[330801163,1719805846680,-151.0,0.00015519,2]
[330801164,1719805846689,-151.0,0.00015519,2]
[330801165,1719805846699,-158.252698,0.00015519,2]
[330801166,1719805846708,-151.0,0.00015519,2]
[330801167,1719805846717,-151.0,0.00015519,2]
[330801168,1719805846726,-151.0,0.00015519,2]
[330801169,1719805846735,-151.0,0.00015519,2]
[330801170,1719805846744,-151.0,0.00015519,2]
[330801171,1719805846754,-151.0,0.00015519,2]
[330801172,1719805846763,-151.0,0.00015519,2]
[330801173,1719805846772,-249.661359,0.00015519,2]
[330801174,1719805846781,-151.0,0.00015519,2]
[330801175,1719805846791,-151.0,0.00015519,2]
[330801176,1719805846800,-151.0,0.00015519,2]
[330801177,1719805846809,-151.0,0.00015519,2]
[330801178,1719805846818,-151.0,0.00015519,2]
[330801179,1719805846827,-151.0,0.00015519,2]
[330801180,1719805846838,-151.0,0.00015519,2]
[330801181,1719805846848,-151.0,0.00015519,2]
[330801182,1719805846857,-151.0,0.00015519,2]
[330801183,1719805846866,-151.0,0.00015519,2]
[330801184,1719805846876,-151.0,0.00015519,2]
[330801185,1719805846886,-263.641159,0.00015519,2]
[330801186,1719805846895,-151.0,0.00015519,2]
[330801187,1719805846905,-78.27292429,0.00015519,2]
[330801190,1719805984622,1436.64565822,0.00014999,4]
[330801191,1719806009127,304.3787457,0.00014999,2]
[330801192,1719806267774,795.64,0.00024,60]
[330801284,1719807032956,-620.00361201,0.00015123,2]
[330801285,1719807032966,-150.0,0.00015464,2]
[330801286,1719807032975,-877.0,0.00015464,2]
[330801287,1719807032984,-169.0,0.00015516,2]
[330801288,1719807032993,-500.0,0.00015517,2]
[330801289,1719807033002,-1006.29,0.00015517,2]
[330801290,1719807033012,-500.0,0.00015517,2]
[330801292,1719807033021,-787.28,0.00015517,2]
[330801294,1719807033031,-7910.42,0.00015517,2]
[330801296,1719807033040,-1043.99,0.00015517,2]
[330801298,1719807033049,-6259.44,0.00015517,2]
[330801300,1719807033060,-1934.76,0.00015517,2]
[330801301,1719807033069,-596.63,0.00015517,2]
[330801302,1719807033077,-500.0,0.00015517,2]
[330801303,1719807033086,-500.0,0.00015518,2]
[330801304,1719807033095,-500.0,0.00015518,2]
[330801305,1719807033104,-838.79,0.00015518,2]
[330801306,1719807033114,-500.36946954,0.00015518,2]
[330801307,1719807033123,-500.0,0.00015518,2]
[330801308,1719807033133,-1261.4,0.00015518,2]
[330801309,1719807033142,-500.0,0.00015518,2]
[330801310,1719807033152,-500.0,0.00015518,2]
[330801311,1719807033161,-500.0,0.00015518,2]
[330801312,1719807033170,-500.0,0.00015518,2]
[330801313,1719807033180,-500.0,0.00015518,2]
[330801314,1719807033189,-500.0,0.00015518,2]
[330801315,1719807033199,-981.83,0.00015518,2]
[330801316,1719807033208,-766.04147781,0.00015518,2]
[330801326,1719807038559,-627.39852219,0.00015518,2]
[330801327,1719807038571,-181.53029329,0.00015518,2]
[330801328,1719807038583,-318.46970671,0.00015518,2]
[330801329,1719807038592,-500.0,0.00015518,2]
[330801330,1719807038601,-500.0,0.00015518,2]
[330801331,1719807038610,-145.2653894,0.00015518,2]
[330801484,1719807046736,-500.0,0.00015517,2]
[330801486,1719807046749,-612.0146106,0.00015518,2]
[330801488,1719807046758,-500.0,0.00015518,2]
[330801490,1719807046767,-871.61,0.00015518,2]
[330801492,1719807046776,-500.0,0.00015518,2]
[330801494,1719807046786,-500.0,0.00015518,2]
[330801495,1719807046795,-500.0,0.00015518,2]
[330801497,1719807046805,-500.0,0.00015518,2]
[330801499,1719807046814,-500.0,0.00015518,2]
[330801501,1719807046826,-500.0,0.00015518,2]
[330801503,1719807046835,-500.0,0.00015518,2]
[330801505,1719807046844,-500.0,0.00015518,2]
[330801507,1719807046856,-500.0,0.00015518,2]
[330801509,1719807046865,-500.0,0.00015518,2]
[330801511,1719807046874,-500.0,0.00015518,2]
[330801513,1719807046883,-500.0,0.00015518,2]
[330801515,1719807046893,-500.0,0.00015518,2]
[330801517,1719807046902,-459.19569486,0.00015518,2]
[330801519,1719807046912,-500.0,0.00015518,2]
[330801521,1719807046922,-500.0,0.00015518,2]
[330801523,1719807046932,-500.0,0.00015518,2]
[330801525,1719807046942,-500.0,0.00015518,2]
[330801527,1719807046952,-500.0,0.00015518,2]
[330801529,1719807046961,-739.69,0.00015518,2]
[330801531,1719807046971,-872.13,0.00015518,2]
[330801533,1719807046980,-500.0,0.00015518,2]
[330801535,1719807046989,-500.0,0.00015518,2]
[330801537,1719807046999,-632.41,0.00015518,2]
[330801539,1719807047008,-500.0,0.00015518,2]
[330801541,1719807047018,-500.0,0.00015518,2]
[330801542,1719807047027,-505.98,0.00015518,2]
[330801543,1719807047036,-1801.14,0.00015518,2]
[330801544,1719807047046,-500.0,0.00015518,2]
[330801545,1719807047055,-500.0,0.00015518,2]
[330801546,1719807047064,-206.91144892,0.00015518,2]
[330801549,1719807170519,770.0,0.00025,120]
[330801578,1719808232248,-877.0,0.0001546,2]
[330801579,1719808232257,-606.06,0.00015515,2]
[330801580,1719808232267,-523.09368309,0.00015515,2]
[330802134,1719808324941,450.0,0.000225,30]
[330802136,1719808344595,350.0,0.000241,59]
[330802138,1719808353004,250.0,0.000241,59]
[330802139,1719808359472,184.92563247,0.000241,59]
[330802224,1719809432033,-877.0,0.00015456,2]
[330802226,1719809432042,-500.0,0.00015513,2]
[330802228,1719809432051,-500.0,0.00015513,2]
[330802230,1719809432060,-144.16957017,0.00015513,2]
[330802492,1719809747426,1100.65452828,0.00025,120]
[330802494,1719809920828,158.07978507,0.00014999,2]
[330802495,1719809969674,2174.71084291,0.00014999,2]
[330802496,1719810085363,686.91904138,0.00014999,2]
[330802497,1719810086697,1294.9930647,0.00014999,2]
[330802498,1719810141242,571.58062735,0.00014999,2]
[330802499,1719810154853,303.25340607,0.00014999,2]
[330802500,1719810328857,160.0,0.00014999,2]
[330802502,1719810419605,289.17089393,0.00014999,2]
[330802504,1719810422077,780.17356111,0.00014999,2]
[330802505,1719810422892,158.02405824,0.00014999,2]
[330802506,1719810434127,155.29164701,0.00014999,2]
[330802509,1719810468865,160.0,0.00014999,2]
[330802558,1719810638200,-665.01168979,0.00015424,2]
[330802559,1719810638325,-211.98831021,0.00015424,2]
[330802560,1719810638335,-221.90869239,0.00015511,2]
[330802561,1719810638345,-803.84,0.00015511,2]
[330802562,1719810638355,-500.0,0.00015511,2]
[330802564,1719810638365,-1208.84,0.00015511,2]
[330802566,1719810638374,-500.0,0.00015511,2]
[330802567,1719810638384,-586.20365969,0.00015511,2]
[330802568,1719810638394,-500.0,0.00015511,2]
[330802569,1719810638403,-500.0,0.00015511,2]
[330802570,1719810638413,-500.0,0.00015511,2]
[330802571,1719810638423,-940.92,0.00015511,2]
[330802572,1719810638432,-1335.38,0.00015511,2]
[330802573,1719810638441,-500.0,0.00015511,2]
[330802574,1719810638451,-500.0,0.00015511,2]
[330802575,1719810638460,-500.0,0.00015511,2]
[330802576,1719810638470,-725.73,0.00015511,2]
[330802577,1719810638480,-835.29,0.00015511,2]
[330802578,1719810638490,-500.0,0.00015511,2]
[330802579,1719810638500,-500.0,0.00015511,2]
[330802580,1719810638510,-500.0,0.00015511,2]
[330802581,1719810638519,-500.0,0.00015511,2]
[330802582,1719810638529,-500.0,0.00015511,2]
[330802583,1719810638539,-500.0,0.00015511,2]
[330802584,1719810638548,-500.0,0.00015511,2]
[330802585,1719810638558,-500.0,0.00015511,2]
[330802586,1719810638567,-500.0,0.00015511,2]
[330802587,1719810638577,-500.0,0.00015511,2]
[330802588,1719810638587,-500.0,0.00015511,2]
[330802589,1719810638596,-500.0,0.00015511,2]
[330802590,1719810638605,-500.0,0.00015511,2]
[330802591,1719810638615,-500.0,0.00015511,2]
[330802592,1719810638624,-500.0,0.00015511,2]
[330802593,1719810638635,-500.0,0.00015511,2]
[330802594,1719810638646,-835.79,0.00015511,2]
[330802595,1719810638655,-500.0,0.00015511,2]
[330802596,1719810638666,-708.87,0.00015511,2]
[330802597,1719810638676,-500.0,0.00015511,2]
[330802598,1719810638685,-500.0,0.00015511,2]
[330802599,1719810638695,-580.81,0.00015511,2]
[330802600,1719810638705,-500.0,0.00015511,2]
[330802601,1719810638715,-500.0,0.00015511,2]
[330802602,1719810638725,-1704.3,0.00015511,2]
[330802603,1719810638735,-769.07,0.00015511,2]
[330802604,1719810638744,-500.0,0.00015511,2]
[330802605,1719810638754,-500.0,0.00015511,2]
[330802606,1719810638763,-890.39,0.00015511,2]
[330802607,1719810638773,-190.65889521,0.00015511,2]
[330802608,1719810638782,-607.28,0.00015511,2]
[330802609,1719810638792,-500.0,0.00015511,2]
[330802610,1719810638801,-500.0,0.00015511,2]
[330802611,1719810638811,-995.46,0.00015511,2]
[330802612,1719810638820,-500.0,0.00015511,2]
[330802613,1719810638830,-862.89,0.00015511,2]
[330802614,1719810638839,-364.64978389,0.00015511,2]
[330803067,1719810644809,237.84,0.000224,31]
[330806889,1719810792138,150.0,0.000225,30]
[330806891,1719810812853,158.02405824,0.00014999,2]
[330806900,1719811126648,1981.5694039,0.00014999,2]
[330806902,1719811235643,1321.04626926,0.00014999,2]
[330806904,1719811825853,395.22757521,0.00015,2]
[330807279,1719811839158,-182.10293608,0.0001541,2]
[330807282,1719811839169,-954.922,0.00015476,2]
[330807284,1719811839180,-165.722,0.00015476,2]
[330807285,1719811839190,-964.36,0.00015508,2]
[330807287,1719811839201,-500.0,0.00015508,2]
[330807289,1719811839211,-754.47,0.00015508,2]
[330807292,1719811839223,-3241.46019773,0.00015508,2]
[330807361,1719811843638,-442.290001,0.00015508,2]
[330807362,1719811843650,-396.97402,0.00015508,2]
[330807388,1719811846716,-854.60441599,0.00015508,2]
[330807392,1719811993853,395.22757521,0.00015,2]
[330807403,1719812151860,395.22757521,0.00015,2]
[330807404,1719812163856,395.22757521,0.00015,2]
[330807407,1719812323870,395.22757521,0.00015,2]
[330807412,1719812496950,395.22757521,0.00015,2]
[330807413,1719812648884,395.22757521,0.00015,2]
[330807415,1719812796394,438.10467295,0.00015,2]
[330807418,1719812950041,-322.50586098,0.00015408,2]
[330807478,1719813032655,-429.92540679,0.00015408,2]
[330807480,1719813032665,-150.0,0.00015471,2]
[330807482,1719813032675,-877.0,0.00015471,2]
[330807484,1719813032685,-508.66037241,0.000155,2]
[330807486,1719813032694,-500.0,0.00015506,2]
[330807487,1719813032705,-723.04,0.00015506,2]
[330807500,1719813032860,-7375.18,0.00015506,2]
[330807501,1719813032872,-997.99,0.00015506,2]
[330807502,1719813032881,-1854.14,0.00015506,2]
[330807503,1719813032891,-571.77,0.00015506,2]
[330807504,1719813032901,-500.0,0.00015506,2]
[330807505,1719813032910,-770.34,0.00015507,2]
[330807506,1719813032920,-1158.47,0.00015507,2]
[330807507,1719813032929,-500.0,0.00015507,2]
[330807508,1719813032939,-500.0,0.00015507,2]
[330807509,1719813032949,-901.72,0.00015507,2]
[330807510,1719813032958,-937.68058697,0.00015507,2]
[330807511,1719813032970,-342.05941303,0.00015507,2]
[330807512,1719813032979,-500.0,0.00015507,2]
[330807513,1719813032989,-500.0,0.00015507,2]
[330807514,1719813032998,-695.49,0.00015507,2]
[330807515,1719813033007,-500.0,0.00015507,2]
[330807516,1719813033017,-800.49,0.00015507,2]
[330807517,1719813033027,-500.0,0.00015507,2]
[330807518,1719813033036,-500.0,0.00015507,2]
[330807519,1719813033046,-500.0,0.00015507,2]
[330807520,1719813033055,-151.0,0.00015507,2]
[330807521,1719813033065,-151.0,0.00015507,2]
[330807522,1719813033075,-169.300906,0.00015507,2]
[330807523,1719813033084,-500.0,0.00015507,2]
[330807524,1719813033093,-500.0,0.00015507,2]
[330807525,1719813033102,-153.981382,0.00015507,2]
[330807526,1719813033112,-500.0,0.00015507,2]
[330807527,1719813033121,-500.0,0.00015507,2]
[330807528,1719813033131,-500.0,0.00015507,2]
[330807529,1719813033140,-500.0,0.00015507,2]
[330807530,1719813033150,-234.04806487,0.00015507,2]
[330807531,1719813033159,-399.14591925,0.00015507,2]
[330807532,1719813033168,-151.0,0.00015507,2]
[330807533,1719813033178,-151.0,0.00015507,2]
[330807534,1719813033187,-151.0,0.00015507,2]
[330807535,1719813033197,-151.0,0.00015507,2]
[330807536,1719813033206,-223.122293,0.00015507,2]
[330807537,1719813033216,-517.13377912,0.00015507,2]
[330807538,1719813033227,-500.0,0.00015507,2]
[330807539,1719813033237,-500.0,0.00015507,2]
[330807540,1719813033247,-151.0,0.00015507,2]
[330807541,1719813033257,-151.0,0.00015507,2]
[330807542,1719813033266,-151.0,0.00015507,2]
[330807543,1719813033276,-151.0,0.00015507,2]
[330807544,1719813033286,-151.0,0.00015507,2]
[330807545,1719813033295,-151.0,0.00015507,2]
[330807546,1719813033305,-500.0,0.00015507,2]
[330807547,1719813033314,-151.0,0.00015507,2]
[330807548,1719813033323,-158.522532,0.00015507,2]
[330807549,1719813033333,-800.96,0.00015507,2]
[330807550,1719813033343,-556.61,0.00015507,2]
[330807551,1719813033352,-500.0,0.00015507,2]
[330807552,1719813033362,-500.0,0.00015507,2]
[330807553,1719813033371,-1633.29,0.00015507,2]
[330807554,1719813033380,-500.0,0.00015507,2]
[330807555,1719813033389,-500.0,0.00015507,2]
[330807556,1719813033399,-500.0,0.00015507,2]
[330807557,1719813033408,-853.3,0.00015507,2]
[330807558,1719813033417,-500.0,0.00015507,2]
[330807559,1719813033426,-552.50089379,0.00015507,2]
[330807560,1719813033435,-737.03,0.00015507,2]
[330807561,1719813033445,-826.93,0.00015507,2]
[330807562,1719813033455,-581.97,0.00015507,2]
[330807563,1719813033464,-500.0,0.00015507,2]
[330807564,1719813033474,-953.98,0.00015507,2]
[330807565,1719813033483,-500.0,0.00015507,2]
[330807566,1719813033493,-2971.75,0.00015507,2]
[330807567,1719813033502,-500.0,0.00015507,2]
[330807568,1719813033511,-500.0,0.00015507,2]
[330807569,1719813033521,-500.0,0.00015507,2]
[330807570,1719813033531,-500.0,0.00015507,2]
[330807571,1719813033540,-500.0,0.00015507,2]
[330807572,1719813033549,-500.0,0.00015507,2]
[330807573,1719813033559,-500.0,0.00015507,2]
[330807574,1719813033568,-500.0,0.00015507,2]
[330807575,1719813033578,-1039.77,0.00015507,2]
[330807576,1719813033587,-500.0,0.00015507,2]
[330807577,1719813033597,-500.0,0.00015507,2]
[330807578,1719813033607,-1037.55,0.00015507,2]
[330807579,1719813033616,-500.0,0.00015507,2]
[330807580,1719813033626,-1169.56,0.00015507,2]
[330807581,1719813033635,-500.0,0.00015507,2]
[330807582,1719813033645,-5634.18,0.00015507,2]
[330807583,1719813033655,-537.92,0.00015507,2]
[330807584,1719813033665,-500.0,0.00015507,2]
[330807585,1719813033675,-5748.68,0.00015507,2]
[330807586,1719813033685,-1539.38,0.00015507,2]
[330807587,1719813033695,-500.0,0.00015507,2]
[330807588,1719813033705,-500.0,0.00015507,2]
[330807589,1719813033717,-500.0,0.00015507,2]
[330807590,1719813033726,-500.0,0.00015508,2]
[330807591,1719813033737,-500.0,0.00015508,2]
[330807592,1719813033746,-500.0,0.00015508,2]
[330807593,1719813033757,-2723.39,0.00015508,2]
[330807594,1719813033772,-576.75576337,0.00015508,2]
[330807595,1719813033782,-924.18,0.00015508,2]
[330807596,1719813033792,-917.51496354,0.00015508,2]
[330807896,1719813041232,-232.164,0.00015471,2]
[330807898,1719813041242,-500.0,0.00015506,2]
[330807900,1719813041251,-500.0,0.00015507,2]
[330807902,1719813041260,-500.0,0.00015507,2]
[330807904,1719813041270,-752.92659538,0.00015508,2]
[330807907,1719813041279,-15.93503646,0.00015508,2]
[330807909,1719813041289,-594.42,0.00015508,2]
[330807911,1719813041298,-500.0,0.00015508,2]
[330807913,1719813041307,-500.0,0.00015508,2]
[330807915,1719813041316,-500.0,0.00015508,2]
[330807917,1719813041325,-500.0,0.00015508,2]
[330807919,1719813041335,-1037.23,0.00015508,2]
[330807921,1719813041343,-500.0,0.00015508,2]
[330807923,1719813041353,-281.58395903,0.00015508,2]
[330808036,1719813046867,-506.59929155,0.00015507,2]
[330808037,1719813046877,-372.32746101,0.00015507,2]
[330808038,1719813046888,-127.67253899,0.00015507,2]
[330808039,1719813046898,-218.41604097,0.00015508,2]
[330808040,1719813046907,-500.0,0.00015508,2]
[330808041,1719813046916,-115.72353327,0.00015508,2]
[330808042,1719813054023,529.89,0.00010959,2]
[330808048,1719813755283,1084.511084,0.00013283,2]
[330808075,1719814231870,-642.91518115,0.00015245,2]
[330808151,1719814238033,-234.08481885,0.00015245,2]
[330808153,1719814238043,-601.9450142,0.00015406,2]
[330808155,1719814238052,-6.02679172,0.00015504,2]
[330808364,1719814240223,-365.93030252,0.00015504,2]
[330808366,1719814240232,-692.91,0.00015504,2]
[330808368,1719814240242,-2555.52002095,0.00015504,2]
[330808370,1719814240256,-4512.35997905,0.00015504,2]
[330808372,1719814240265,-956.41,0.00015504,2]